[Event "94th FRA-ch Open A 2019"]
[Site "Chartres"]
[Date "2019.08.23"]
[Round "7.2"]
[White "Da Silva, Quentin"]
[Black "Amoyal, Pierre"]
[Result "1/2-1/2"]
[ECO "C86"]
[WhiteElo "2161"]
[BlackElo "2093"]
[Annotator "NA"]
[PlyCount "70"]
[EventDate "2019.08.17"]
[EventType "swiss"]
[EventCountry "FRA"]
[SourceTitle "playchess.com"]
[Source "ChessBase"]
[SourceQuality "1"]
[TimeControl "40/5400+30:1800+30"]

1. e4 {[%emt 0:00:00]} e5 {[%emt 0:00:16]} 2. Nf3 {[%emt 0:00:00]} Nc6 {[%emt 0:00:55]} 3. Bb5 {[%emt 0:00:28]} a6 {[%emt 0:01:31]} 4. Ba4 {[%emt 0:00:44]} Nf6 {[%emt 0:00:26]} 5. O-O {[%emt 0:01:29]} Be7 {[%emt 0:05:07]} 6. Qe2 {[%emt 0:02:38]} b5 {[%emt 0:05:54]} 7. Bb3 {[%emt 0:00:14]} O-O {[%emt 0:01:28]} 8. c3 {[%emt 0:08:26]} d5 {[%emt 0:03:55]} 9. exd5 {[%emt 0:05:07]} Bg4 {[%emt 0:05:22]} 10. d3 {[%emt 0:10:38]} Na5 {[%emt 0:04:14]} 11. Qxe5 {[%emt 0:16:21]} Nxb3 {[%emt 0:04:12]} 12. axb3 {[%emt 0:00:13]} Bxf3 {[%emt 0:00:06]} 13. gxf3 {[%emt 0:00:07]} Bd6 {[%emt 0:00:06]} 14. Qf5 {[%emt 0:04:58]} Nxd5 {[%emt 0:07:48]} 15. Bg5 {[%emt 0:02:28]} Ne7 {[%emt 0:04:35]} 16. Bxe7 {[%emt 0:09:31]} Qxe7 {[%emt 0:00:20]} 17. Nd2 {[%emt 0:02:36]} g6 {[%emt 0:00:24]} 18. Qg4 {[%emt 0:01:47]} f5 {[%emt 0:00:53]} 19. Qg2 {[%emt 0:00:24]} Qe2 {[%emt 0:00:09]} 20. Rad1 {[%emt 0:01:34]} Rfe8 {[%emt 0:13:11]} 21. f4 {[%emt 0:09:43]} Bxf4 {[%emt 0:03:21]} 22. Rfe1 {[%emt 0:02:33]} Qxe1+ {[%emt 0:07:42]} 23. Rxe1 {[%emt 0:00:05]} Rxe1+ {[%emt 0:00:06]} 24. Nf1 {[%emt 0:00:03]} Rd8 {[%emt 0:00:16]} 25. Qf3 {[%emt 0:03:23]} Bc1 {[%emt 0:04:14]} 26. Kg2 {[%emt 0:00:39]} Bxb2 {[%emt 0:02:11]} 27. Qf4 {[%emt 0:04:38]} Rxd3 {[%emt 0:06:29]} 28. Qxc7 {[%emt 0:02:02]} Rxc3 {[%emt 0:01:05]} 29. Qd8+ {[%emt 0:01:29]} Kg7 {[%emt 0:02:18]} 30. Qd2 {[%emt 0:03:13]} Rb1 {[%emt 0:00:51]} 31. Qd7+ {[%emt 0:00:28]} Kh6 {[%emt 0:01:06]} 32. Qd2+ {[%emt 0:01:05]} Kg7 {[%emt 0:00:10]} 33. Qd7+ {[%emt 0:00:30]} Kh6 {[%emt 0:00:07]} 34. Qd2+ {[%emt 0:02:40]} Kg7 {[%emt 0:00:15]} 35. Qd7+ {[%emt 0:00:20]} Kh6 {[%emt 0:16:27]} 1/2-1/2

[Event "94th FRA-ch Open A 2019"]
[Site "Chartres"]
[Date "2019.08.23"]
[Round "7.3"]
[White "Haie, Arnaud"]
[Black "Vedovotto, Nicolas"]
[Result "1-0"]
[ECO "A40"]
[WhiteElo "2130"]
[BlackElo "2199"]
[Annotator "NA"]
[PlyCount "35"]
[EventDate "2019.08.17"]
[EventType "swiss"]
[EventCountry "FRA"]
[SourceTitle "playchess.com"]
[Source "ChessBase"]
[SourceQuality "1"]
[TimeControl "40/5400+30:1800+30"]

1. d4 {[%emt 0:10:11]} Nc6 {[%emt 0:00:10]} 2. d5 {[%emt 0:04:30]} Ne5 {[%emt 0:00:05]} 3. e4 {[%emt 0:00:31]} Ng6 {[%emt 0:02:03]} 4. f4 {[%emt 0:00:39]} e5 {[%emt 0:00:21]} 5. dxe6 {[%emt 0:01:22]} fxe6 {[%emt 0:00:05]} 6. Nf3 {[%emt 0:02:24]} d5 {[%emt 0:00:39]} 7. Bd3 {[%emt 0:04:58]} Bc5 {[%emt 0:14:22]} 8. Nc3 {[%emt 0:09:45]} Nf6 {[%emt 0:10:23]} 9. e5 {[%emt 0:05:50]} Ng4 {[%emt 0:14:27]} 10. Bxg6+ {[%emt 0:10:45]} hxg6 {[%emt 0:00:03]} 11. Qd3 {[%emt 0:00:40]} Kf7 {[%emt 0:05:17]} 12. Ng5+ {[%emt 0:03:53]} Kg8 {[%emt 0:00:22]} 13. Qxg6 {[%emt 0:01:13]} Qe7 {[%emt 0:00:41]} 14. Nge4 {[%emt 0:12:06]} Nxh2 {[%emt 0:10:22]} 15. Nf6+ {[%emt 0:01:52]} Qxf6 {[%emt 0:06:14]} 16. exf6 {[%emt 0:00:14]} Nf3+ {[%emt 0:00:08]} 17. Ke2 {[%emt 0:00:41]} Nd4+ {[%emt 0:00:12]} 18. Kd3 {[%emt 0:00:38]} 1-0

[Event "94th FRA-ch Open A 2019"]
[Site "Chartres"]
[Date "2019.08.23"]
[Round "7.4"]
[White "Meunier-Pion, Jean"]
[Black "Nguyen-Cadoret, Nathan"]
[Result "1/2-1/2"]
[ECO "C78"]
[WhiteElo "2193"]
[BlackElo "2122"]
[Annotator "NA"]
[PlyCount "264"]
[EventDate "2019.08.17"]
[EventType "swiss"]
[EventCountry "FRA"]
[SourceTitle "playchess.com"]
[Source "ChessBase"]
[SourceQuality "1"]
[TimeControl "40/5400+30:1800+30"]

1. e4 {[%emt 0:00:00]} e5 {[%emt 0:00:00]} 2. Nf3 {[%emt 0:00:00]} Nc6 {[%emt 0:00:00]} 3. Bb5 {[%emt 0:00:00]} a6 {[%emt 0:00:00]} 4. Ba4 {[%emt 0:00:00]} Nf6 {[%emt 0:00:04]} 5. d3 {[%emt 1:32:30]} b5 {[%emt 0:01:23]} 6. Bb3 {[%emt 0:00:00]} Bc5 7. O-O {[%emt 0:01:00]} d6 {[%emt 0:08:25]} 8. c3 {[%emt 0:00:00]} O-O {[%emt 0:01:36]} 9. a4 {[%emt 0:00:00]} Bb7 {[%emt 0:09:23]} 10. Na3 {[%emt 0:00:00]} b4 {[%emt 0:20:14]} 11. Nc4 {[%emt 0:00:00]} bxc3 {[%emt 0:05:33]} 12. bxc3 {[%emt 0:00:00]} Re8 {[%emt 0:02:53]} 13. Bg5 {[%emt 0:00:00]} h6 {[%emt 0:02:14]} 14. Bh4 {[%emt 0:00:00]} Ba7 {[%emt 0:00:58]} 15. Qd2 {[%emt 0:00:00]} Rb8 {[%emt 0:14:28]} 16. a5 {[%emt 0:00:00]} Bc8 {[%emt 0:01:08]} 17. Ba4 {[%emt 0:00:00]} Bd7 {[%emt 0:00:35]} 18. h3 {[%emt 0:00:00]} Qe7 {[%emt 0:02:21]} 19. Ne3 {[%emt 0:00:00]} Bxe3 {[%emt 0:07:40]} 20. fxe3 {[%emt 0:00:00]} g5 {[%emt 0:02:35]} 21. Bg3 {[%emt 0:02:28]} Nh5 {[%emt 0:10:51]} 22. Bh2 {[%emt 0:00:04]} Rb7 {[%emt 0:02:11]} 23. Qe2 {[%emt 0:01:35]} Ng7 {[%emt 0:01:14]} 24. Ra2 {[%emt 0:01:01]} Nb8 {[%emt 0:02:15]} 25. Bc2 {[%emt 0:01:16]} c5 {[%emt 0:00:44]} 26. d4 {[%emt 0:00:08]} cxd4 {[%emt 0:02:24]} 27. exd4 {[%emt 0:00:04]} exd4 {[%emt 0:01:05]} 28. Nxd4 {[%emt 0:00:43]} Be6 {[%emt 0:00:48]} 29. c4 {[%emt 0:00:55]} Rc8 {[%emt 0:00:25]} 30. Bd3 {[%emt 0:01:11]} Rb4 {[%emt 0:00:50]} 31. Qd2 {[%emt 0:01:06]} Qa7 {[%emt 0:00:29]} 32. Kh1 {[%emt 0:00:59]} Bxc4 {[%emt 0:00:35]} 33. Qxb4 {[%emt 0:00:30]} Bxa2 {[%emt 0:00:23]} 34. Qa4 {[%emt 0:00:38]} Be6 {[%emt 0:00:37]} 35. Bxd6 {[%emt 0:00:44]} Qd7 {[%emt 0:00:32]} 36. Qxd7 {[%emt 0:00:17]} Nxd7 {[%emt 0:00:31]} 37. Rb1 {[%emt 0:00:48]} Nc5 {[%emt 0:00:24]} 38. Bxc5 {[%emt 0:00:20]} Rxc5 {[%emt 0:00:05]} 39. Rb8+ {[%emt 0:00:03]} Rc8 {[%emt 0:00:30]} 40. Rb6 {[%emt 0:00:37]} Bc4 {[%emt 0:00:57]} 41. Bxc4 {[%emt 0:05:47]} Rxc4 {[%emt 0:00:19]} 42. Nc6 {[%emt 0:00:56]} Ne6 {[%emt 0:07:21]} 43. Rxa6 {[%emt 0:00:48]} Kg7 {[%emt 0:02:07]} 44. Rb6 {[%emt 0:03:42]} Nd4 {[%emt 0:12:19]} 45. Ne7 {[%emt 0:03:21]} Rc7 {[%emt 0:03:19]} 46. Nd5 {[%emt 0:00:33]} Rc1+ {[%emt 0:01:11]} 47. Kh2 {[%emt 0:00:02]} h5 {[%emt 0:01:54]} 48. Rb4 {[%emt 0:04:50]} Ne2 {[%emt 0:04:16]} 49. Rb2 {[%emt 0:03:44]} Nd4 {[%emt 0:00:54]} 50. Ra2 {[%emt 0:00:34]} Nc6 {[%emt 0:00:29]} 51. a6 {[%emt 0:00:24]} Na7 {[%emt 0:00:47]} 52. Kg3 {[%emt 0:00:29]} Rc6 {[%emt 0:00:38]} 53. Ra4 {[%emt 0:00:53]} Rd6 {[%emt 0:00:35]} 54. h4 {[%emt 0:02:21]} f6 {[%emt 0:00:51]} 55. Ra5 {[%emt 0:02:14]} Kf7 {[%emt 0:00:34]} 56. Ne3 {[%emt 0:02:35]} Rd3 {[%emt 0:00:27]} 57. Kf3 {[%emt 0:00:06]} Kg6 {[%emt 0:00:32]} 58. hxg5 {[%emt 0:00:59]} fxg5 {[%emt 0:00:04]} 59. Rd5 {[%emt 0:00:13]} Rxd5 {[%emt 0:00:49]} 60. exd5 {[%emt 0:00:01]} Kf6 {[%emt 0:00:28]} 61. Ke4 {[%emt 0:00:01]} Nb5 {[%emt 0:00:24]} 62. Nc4 {[%emt 0:00:37]} g4 {[%emt 0:00:30]} 63. Nb6 {[%emt 0:01:12]} h4 {[%emt 0:00:42]} 64. Nc4 {[%emt 0:03:39]} Nc3+ {[%emt 0:00:37]} 65. Kd4 {[%emt 0:01:07]} h3 {[%emt 0:00:28]} 66. Kxc3 {[%emt 0:00:18]} hxg2 {[%emt 0:00:16]} 67. a7 {[%emt 0:00:01]} g1=Q {[%emt 0:00:08]} 68. a8=Q {[%emt 0:00:01]} Qc1+ {[%emt 0:00:20]} 69. Kb4 {[%emt 0:00:19]} Qe1+ {[%emt 0:00:53]} 70. Kc5 {[%emt 0:00:33]} g3 {[%emt 0:00:09]} 71. d6 {[%emt 0:00:45]} Qf2+ {[%emt 0:00:41]} 72. Kb5 {[%emt 0:00:30]} Qf5+ {[%emt 0:00:38]} 73. Ka6 {[%emt 0:00:56]} Qd3 {[%emt 0:00:30]} 74. Qc6 {[%emt 0:00:40]} g2 {[%emt 0:00:40]} 75. Qxg2 {[%emt 0:01:10]} Qxc4+ {[%emt 0:00:04]} 76. Kb6 {[%emt 0:00:36]} Qd4+ {[%emt 0:00:33]} 77. Kc7 {[%emt 0:00:25]} Qa7+ {[%emt 0:00:41]} 78. Qb7 {[%emt 0:00:27]} Qc5+ {[%emt 0:00:54]} 79. Qc6 {[%emt 0:00:27]} Qe5 {[%emt 0:00:30]} 80. Kb7 {[%emt 0:01:01]} Qb2+ {[%emt 0:00:33]} 81. Kc8 {[%emt 0:00:10]} Qd4 {[%emt 0:00:27]} 82. d7+ {[%emt 0:00:19]} Ke7 {[%emt 0:00:04]} 83. Qc7 {[%emt 0:00:08]} Qg4 {[%emt 0:00:06]} 84. Qe5+ {[%emt 0:01:28]} Kf7 {[%emt 0:00:05]} 85. Qe8+ {[%emt 0:00:22]} Kg7 {[%emt 0:00:04]} 86. Kd8 {[%emt 0:00:15]} Qf5 {[%emt 0:00:53]} 87. Qe7+ {[%emt 0:00:39]} Kg8 {[%emt 0:00:12]} 88. Qd6 {[%emt 0:00:46]} Qa5+ {[%emt 0:02:07]} 89. Ke7 {[%emt 0:00:40]} Qg5+ {[%emt 0:00:32]} 90. Ke8 {[%emt 0:00:56]} Qh5+ {[%emt 0:00:29]} 91. Kd8 {[%emt 0:00:20]} Qa5+ {[%emt 0:00:10]} 92. Ke7 {[%emt 0:00:38]} Qg5+ {[%emt 0:00:05]} 93. Qf6 {[%emt 0:00:07]} Qc5+ {[%emt 0:00:03]} 94. Ke8 {[%emt 0:00:09]} Qh5+ {[%emt 0:00:28]} 95. Ke7 {[%emt 0:00:18]} Qc5+ {[%emt 0:00:08]} 96. Kd8 {[%emt 0:00:46]} Qa5+ {[%emt 0:00:11]} 97. Kc8 {[%emt 0:00:08]} Qa8+ {[%emt 0:01:07]} 98. Kc7 {[%emt 0:00:06]} Qa7+ {[%emt 0:00:06]} 99. Kd6 {[%emt 0:00:29]} Qb6+ {[%emt 0:00:41]} 100. Ke5 {[%emt 0:00:12]} Qb5+ {[%emt 0:00:44]} 101. Ke6 {[%emt 0:00:06]} Qc6+ {[%emt 0:00:29]} 102. Ke7 {[%emt 0:00:01]} Qc5+ {[%emt 0:00:11]} 103. Qd6 {[%emt 0:00:32]} Qg5+ {[%emt 0:00:17]} 104. Ke6 {[%emt 0:00:20]} Qg6+ {[%emt 0:01:03]} 105. Kd5 {[%emt 0:00:53]} Qd3+ {[%emt 0:01:23]} 106. Kc5 {[%emt 0:00:24]} Qa3+ {[%emt 0:00:19]} 107. Kc6 {[%emt 0:00:01]} Qa6+ {[%emt 0:00:23]} 108. Kc7 {[%emt 0:00:06]} Qa7+ {[%emt 0:00:44]} 109. Kc8 {[%emt 0:00:44]} Qa8+ {[%emt 0:00:05]} 110. Qb8 {[%emt 0:00:05]} Qc6+ {[%emt 0:00:02]} 111. Kd8 {[%emt 0:00:07]} Kf7 {[%emt 0:00:36]} 112. Qf4+ {[%emt 0:00:52]} Kg8 {[%emt 0:00:57]} 113. Qg5+ {[%emt 0:01:15]} Kf7 {[%emt 0:01:04]} 114. Qf5+ {[%emt 0:00:10]} Kg8 {[%emt 0:00:31]} 115. Ke7 {[%emt 0:00:40]} Qb7 {[%emt 0:00:40]} 116. Qg5+ {[%emt 0:01:20]} Kh8 {[%emt 0:00:26]} 117. Kf8 {[%emt 0:01:18]} Qf3+ {[%emt 0:00:35]} 118. Ke7 {[%emt 0:00:57]} Qb7 {[%emt 0:00:33]} 119. Qg4 {[%emt 0:01:04]} Kh7 {[%emt 0:00:28]} 120. Kf6 {[%emt 0:00:49]} Qb2+ {[%emt 0:00:31]} 121. Kg5 {[%emt 0:00:33]} Qg7+ {[%emt 0:00:26]} 122. Kh4 {[%emt 0:00:21]} Qe7+ {[%emt 0:00:12]} 123. Kh3 {[%emt 0:00:40]} Qe3+ {[%emt 0:00:22]} 124. Kg2 {[%emt 0:00:36]} Qd2+ {[%emt 0:00:20]} 125. Kf3 {[%emt 0:00:18]} Qd3+ {[%emt 0:00:37]} 126. Kf4 {[%emt 0:00:09]} Qd4+ {[%emt 0:00:51]} 127. Kg5 {[%emt 0:00:06]} Qg7+ {[%emt 0:00:30]} 128. Kh4 {[%emt 0:00:12]} Qe7+ {[%emt 0:00:24]} 129. Qg5 {[%emt 0:00:24]} Qxd7 {[%emt 0:00:35]} 130. Qh5+ {[%emt 0:00:12]} Kg8 {[%emt 0:00:26]} 131. Qg6+ {[%emt 0:00:08]} Qg7 {[%emt 0:00:09]} 132. Qxg7+ {[%emt 0:00:13]} Kxg7 {[%emt 0:01:44]} 1/2-1/2

[Event "94th FRA-ch Open A 2019"]
[Site "Chartres"]
[Date "2019.08.23"]
[Round "7.5"]
[White "Burille, Matthieu"]
[Black "Grandy, Aurelien"]
[Result "1-0"]
[ECO "C77"]
[WhiteElo "2174"]
[BlackElo "2032"]
[Annotator "NA"]
[PlyCount "67"]
[EventDate "2019.08.17"]
[EventType "swiss"]
[EventCountry "FRA"]
[SourceTitle "playchess.com"]
[Source "ChessBase"]
[SourceQuality "1"]
[TimeControl "40/5400+30:1800+30"]

1. e4 {[%emt 0:00:00]} e5 {[%emt 0:00:00]} 2. Nf3 {[%emt 0:00:00]} Nc6 {[%emt 0:00:00]} 3. Bb5 {[%emt 0:00:00]} a6 {[%emt 0:00:00]} 4. Ba4 {[%emt 0:00:00]} Nf6 {[%emt 0:00:00]} 5. O-O {[%emt 0:00:02]} Be7 {[%emt 0:00:01]} 6. d3 {[%emt 0:00:17]} b5 {[%emt 0:00:05]} 7. Bb3 {[%emt 0:00:03]} d6 {[%emt 0:00:31]} 8. a3 {[%emt 0:00:07]} O-O {[%emt 0:00:11]} 9. Nc3 {[%emt 0:00:03]} Na5 {[%emt 0:03:18]} 10. Ba2 {[%emt 0:00:12]} c5 {[%emt 0:00:13]} 11. Bg5 {[%emt 0:00:32]} Bb7 {[%emt 0:01:11]} 12. Bxf6 {[%emt 0:05:24]} Bxf6 {[%emt 0:00:10]} 13. Nd5 {[%emt 0:18:17]} Nc6 {[%emt 0:04:34]} 14. b4 {[%emt 0:05:55]} a5 {[%emt 0:07:31]} 15. c4 {[%emt 0:01:45]} axb4 {[%emt 0:02:05]} 16. cxb5 {[%emt 0:03:19]} Na7 {[%emt 0:03:21]} 17. a4 {[%emt 0:06:10]} Bxd5 {[%emt 0:05:42]} 18. Bxd5 {[%emt 0:00:27]} Rb8 {[%emt 0:00:05]} 19. Nd2 {[%emt 0:02:12]} Qd7 {[%emt 0:00:20]} 20. Nc4 {[%emt 0:01:36]} Bd8 {[%emt 0:01:25]} 21. f4 {[%emt 0:02:07]} exf4 {[%emt 0:03:17]} 22. Rxf4 {[%emt 0:00:25]} g6 {[%emt 0:00:09]} 23. Qf3 {[%emt 0:01:25]} Kg7 {[%emt 0:00:06]} 24. Rf1 {[%emt 0:01:10]} f6 {[%emt 0:01:05]} 25. Rh4 {[%emt 0:12:31]} Nc8 {[%emt 0:06:08]} 26. Qf4 {[%emt 0:12:52]} g5 {[%emt 0:07:22]} 27. Rg4 {[%emt 0:01:13]} h6 {[%emt 0:01:18]} 28. h4 {[%emt 0:00:45]} Be7 {[%emt 0:01:13]} 29. Ne3 {[%emt 0:02:39]} h5 {[%emt 0:12:01]} 30. Rg3 {[%emt 0:01:32]} Kh7 {[%emt 0:00:36]} 31. Qf3 {[%emt 0:07:41]} g4 {[%emt 0:01:30]} 32. Qf4 {[%emt 0:00:03]} Kg6 {[%emt 0:05:06]} 33. Nf5 {[%emt 0:00:17]} Rh8 {[%emt 0:00:09]} 34. Rxg4+ {[%emt 0:00:12]} 1-0

[Event "94th FRA-ch Open A 2019"]
[Site "Chartres"]
[Date "2019.08.23"]
[Round "7.6"]
[White "Derige Kane, Yan"]
[Black "Mahieu, Luc"]
[Result "0-1"]
[ECO "B50"]
[WhiteElo "2156"]
[BlackElo "2084"]
[Annotator "NA"]
[PlyCount "88"]
[EventDate "2019.08.17"]
[EventType "swiss"]
[EventCountry "FRA"]
[SourceTitle "playchess.com"]
[Source "ChessBase"]
[SourceQuality "1"]
[TimeControl "40/5400+30:1800+30"]

1. e4 {[%emt 0:00:00]} c5 {[%emt 0:00:00]} 2. Nf3 {[%emt 0:00:00]} d6 {[%emt 0:00:00]} 3. c3 {[%emt 0:00:00]} Nf6 {[%emt 0:00:04]} 4. Be2 {[%emt 0:00:13]} g6 {[%emt 0:00:19]} 5. O-O {[%emt 0:02:18]} Bg7 {[%emt 0:00:19]} 6. Bb5+ {[%emt 0:10:04]} Nbd7 {[%emt 0:01:16]} 7. Re1 {[%emt 0:00:35]} O-O {[%emt 0:00:41]} 8. d4 {[%emt 0:01:27]} a6 {[%emt 0:00:42]} 9. Bxd7 {[%emt 0:04:19]} Nxd7 {[%emt 0:00:53]} 10. a4 {[%emt 0:05:57]} b6 {[%emt 0:04:12]} 11. Bg5 {[%emt 0:01:02]} Re8 {[%emt 0:05:52]} 12. Nbd2 {[%emt 0:03:24]} Qc7 {[%emt 0:01:29]} 13. h3 {[%emt 0:02:05]} Bb7 {[%emt 0:05:22]} 14. Qe2 {[%emt 0:06:03]} e5 {[%emt 0:08:29]} 15. dxe5 {[%emt 0:01:35]} Nxe5 {[%emt 0:00:55]} 16. Nxe5 {[%emt 0:00:24]} Bxe5 {[%emt 0:00:36]} 17. f4 {[%emt 0:02:56]} Bg7 {[%emt 0:01:20]} 18. Qf2 {[%emt 0:11:17]} b5 {[%emt 0:12:56]} 19. axb5 {[%emt 0:01:12]} axb5 {[%emt 0:02:00]} 20. Rxa8 {[%emt 0:11:56]} Bxa8 {[%emt 0:01:34]} 21. f5 {[%emt 0:00:55]} f6 {[%emt 0:12:08]} 22. Bf4 {[%emt 0:01:50]} Qe7 {[%emt 0:02:00]} 23. fxg6 {[%emt 0:31:58]} hxg6 24. Qg3 d5 25. Qxg6 dxe4 26. Bd6 Qf7 27. Qxf7+ Kxf7 28. Bxc5 f5 29. Be3 Be5 30. Rf1 Kg6 31. Nb3 Bd5 32. Nd4 Bxd4 33. Bxd4 e3 34. Ra1 f4 35. Rf1 Kf5 36. Re1 Ke4 37. Kf1 Rg8 38. g4 Rg6 39. Kg1 Kd3 40. b4 Kd2 41. Rb1 f3 42. Bxe3+ Kxe3 43. Re1+ Kf4 44. Kf2 Ra6 0-1

[Event "94th FRA-ch Open A 2019"]
[Site "Chartres"]
[Date "2019.08.24"]
[Round "8.1"]
[White "Aumont, Alexandre"]
[Black "Amoyal, Pierre"]
[Result "1-0"]
[ECO "B26"]
[WhiteElo "2190"]
[BlackElo "2093"]
[Annotator "NA"]
[PlyCount "51"]
[EventDate "2019.08.17"]
[EventType "swiss"]
[EventCountry "FRA"]
[SourceTitle "playchess.com"]
[Source "ChessBase"]
[SourceQuality "1"]
[TimeControl "40/5400+30:1800+30"]

1. e4 {[%emt 0:00:00]} c5 {[%emt 0:07:30]} 2. Nc3 {[%emt 0:00:00]} g6 {[%emt 0:01:10]} 3. g3 {[%emt 0:00:00]} Bg7 {[%emt 0:00:21]} 4. Bg2 {[%emt 0:00:00]} Nc6 {[%emt 0:00:24]} 5. d3 {[%emt 0:00:05]} d6 {[%emt 0:00:54]} 6. Be3 {[%emt 0:00:13]} Rb8 {[%emt 0:01:29]} 7. Qd2 {[%emt 0:00:42]} b5 {[%emt 0:00:36]} 8. Nge2 {[%emt 0:00:21]} b4 {[%emt 0:09:18]} 9. Nd1 {[%emt 0:00:08]} Nd4 {[%emt 0:08:18]} 10. O-O {[%emt 0:00:09]} Qa5 {[%emt 0:06:24]} 11. a3 {[%emt 0:36:15]} Qa6 {[%emt 0:08:05]} 12. Bxd4 {[%emt 0:00:56]} cxd4 {[%emt 0:00:07]} 13. b3 {[%emt 0:00:20]} bxa3 {[%emt 0:12:58]} 14. Qc1 {[%emt 0:01:45]} Qb6 {[%emt 0:03:38]} 15. Qxa3 {[%emt 0:00:08]} a6 {[%emt 0:00:16]} 16. Nb2 {[%emt 0:08:07]} Nh6 {[%emt 0:04:37]} 17. Nc4 {[%emt 0:01:25]} Qb5 {[%emt 0:02:20]} 18. Qc1 {[%emt 0:02:38]} O-O {[%emt 0:03:17]} 19. Ra5 {[%emt 0:03:26]} Qb4 {[%emt 0:00:23]} 20. Nxd4 {[%emt 0:03:24]} Bxd4 {[%emt 0:00:07]} 21. Qxh6 {[%emt 0:00:05]} Rb5 {[%emt 0:01:11]} 22. Ra4 {[%emt 0:01:40]} Qc5 {[%emt 0:00:08]} 23. Qd2 {[%emt 0:01:13]} f5 {[%emt 0:00:10]} 24. exf5 {[%emt 0:08:10]} Rxf5 {[%emt 0:03:49]} 25. Ne3 {[%emt 0:02:06]} Re5 {[%emt 0:00:35]} 26. Rc4 {[%emt 0:01:00]} 1-0

[Event "94th FRA-ch Open A 2019"]
[Site "Chartres"]
[Date "2019.08.24"]
[Round "8.2"]
[White "Droin, Augustin"]
[Black "Burille, Matthieu"]
[Result "1/2-1/2"]
[ECO "B50"]
[WhiteElo "2128"]
[BlackElo "2174"]
[Annotator "NA"]
[PlyCount "148"]
[EventDate "2019.08.17"]
[EventType "swiss"]
[EventCountry "FRA"]
[SourceTitle "playchess.com"]
[Source "ChessBase"]
[SourceQuality "1"]
[TimeControl "40/5400+30:1800+30"]

1. e4 {[%emt 0:00:00]} c5 {[%emt 0:00:00]} 2. Nf3 {[%emt 0:00:00]} d6 {[%emt 0:00:00]} 3. Nc3 {[%emt 0:00:03]} Nf6 {[%emt 0:00:00]} 4. e5 {[%emt 0:00:06]} dxe5 {[%emt 0:00:00]} 5. Nxe5 {[%emt 0:00:04]} a6 {[%emt 0:00:01]} 6. g3 {[%emt 0:00:08]} Nbd7 {[%emt 0:02:30]} 7. d4 {[%emt 0:02:57]} e6 {[%emt 0:04:43]} 8. Be3 {[%emt 0:06:45]} cxd4 {[%emt 0:07:30]} 9. Bxd4 {[%emt 0:00:28]} Qc7 {[%emt 0:00:11]} 10. Qe2 {[%emt 0:11:49]} Bc5 {[%emt 0:11:32]} 11. Bxc5 {[%emt 0:00:33]} Qxc5 {[%emt 0:00:08]} 12. Nd3 {[%emt 0:00:49]} Qc6 {[%emt 0:01:45]} 13. Rg1 {[%emt 0:00:48]} O-O {[%emt 0:00:39]} 14. Bg2 {[%emt 0:00:34]} Qc7 {[%emt 0:00:13]} 15. g4 {[%emt 0:01:15]} Nc5 {[%emt 0:13:45]} 16. Nxc5 {[%emt 0:11:33]} Qxc5 {[%emt 0:00:07]} 17. O-O-O {[%emt 0:00:07]} Rb8 {[%emt 0:00:00]} 18. h4 {[%emt 0:01:43]} b5 {[%emt 0:25:43]} 19. g5 {[%emt 0:02:24]} Nd5 {[%emt 0:02:11]} 20. Qe5 {[%emt 0:06:41]} Bb7 {[%emt 0:03:54]} 21. Bxd5 {[%emt 0:02:07]} Bxd5 {[%emt 0:00:26]} 22. Nxd5 {[%emt 0:03:15]} exd5 {[%emt 0:00:14]} 23. Qxd5 {[%emt 0:01:52]} Qxf2 {[%emt 0:00:34]} 24. h5 {[%emt 0:02:03]} Rbc8 {[%emt 0:00:49]} 25. Qd3 {[%emt 0:01:40]} Qb6 {[%emt 0:05:43]} 26. g6 {[%emt 0:02:55]} fxg6 {[%emt 0:02:00]} 27. hxg6 {[%emt 0:01:56]} h6 {[%emt 0:00:34]} 28. Kb1 {[%emt 0:02:37]} Rc6 {[%emt 0:01:43]} 29. a3 {[%emt 0:05:15]} Rcf6 {[%emt 0:04:21]} 30. Rde1 {[%emt 0:02:12]} Rd8 {[%emt 0:03:39]} 31. Qe4 {[%emt 0:01:57]} Rdd6 {[%emt 0:02:16]} 32. Rgf1 {[%emt 0:02:29]} Rxf1 {[%emt 0:02:36]} 33. Rxf1 {[%emt 0:00:39]} Qc6 {[%emt 0:01:53]} 34. Qe7 {[%emt 0:04:25]} Rxg6 {[%emt 0:01:53]} 35. Re1 {[%emt 0:02:35]} Rf6 {[%emt 0:00:45]} 36. Rg1 {[%emt 0:01:03]} Rf7 {[%emt 0:00:19]} 37. Qd8+ {[%emt 0:00:30]} Rf8 {[%emt 0:00:11]} 38. Qd4 {[%emt 0:00:22]} Rf7 {[%emt 0:00:39]} 39. Qd8+ {[%emt 0:00:16]} Rf8 {[%emt 0:00:02]} 40. Qd4 {[%emt 0:00:11]} Qf6 {[%emt 0:00:15]} 41. Qd5+ {[%emt 0:30:20]} Kh7 {[%emt 0:30:12]} 42. Qe4+ {[%emt 0:01:56]} Qf5 {[%emt 0:02:50]} 43. Qb7 {[%emt 0:00:53]} Qf6 {[%emt 0:00:00]} 44. Qe4+ {[%emt 0:00:00]} g6 {[%emt 0:00:00]} 45. Rd1 {[%emt 0:00:00]} Rf7 {[%emt 0:00:00]} 46. Qe8 {[%emt 0:00:00]} h5 {[%emt 0:00:00]} 47. Rd7 {[%emt 0:00:00]} Rxd7 {[%emt 0:00:00]} 48. Qxd7+ {[%emt 0:00:00]} Kh6 {[%emt 0:00:00]} 49. b3 {[%emt 0:00:00]} h4 {[%emt 0:00:00]} 50. a4 {[%emt 0:00:00]} bxa4 {[%emt 0:00:00]} 51. Qxa4 {[%emt 0:00:00]} h3 {[%emt 0:00:49]} 52. Qd7 {[%emt 0:00:00]} Qf1+ {[%emt 0:00:25]} 53. Kb2 {[%emt 0:00:00]} Qf5 {[%emt 0:00:12]} 54. Qd6 {[%emt 0:00:00]} a5 {[%emt 0:00:29]} 55. Qb8 {[%emt 0:00:00]} Kg5 {[%emt 0:02:59]} 56. Qg3+ {[%emt 0:00:00]} Kh5 {[%emt 0:00:07]} 57. Qb8 {[%emt 0:00:00]} g5 {[%emt 0:00:29]} 58. Qh8+ {[%emt 0:00:00]} Kg4 {[%emt 0:00:38]} 59. Qd4+ {[%emt 0:00:00]} Qf4 {[%emt 0:00:28]} 60. Qd7+ {[%emt 0:00:00]} Kg3 {[%emt 0:02:09]} 61. Qd3+ {[%emt 0:00:00]} Qf3 {[%emt 0:00:45]} 62. Qd6+ {[%emt 0:00:00]} Kh4 {[%emt 0:00:53]} 63. Qh6+ {[%emt 0:00:00]} Qh5 {[%emt 0:00:04]} 64. Qf6 {[%emt 0:00:00]} Qe8 {[%emt 0:00:34]} 65. Qf2+ {[%emt 0:00:00]} Kh5 {[%emt 0:00:07]} 66. Qf3+ {[%emt 0:00:03]} g4 {[%emt 0:00:16]} 67. Qf5+ {[%emt 0:01:07]} Kh4 {[%emt 0:00:08]} 68. Qf2+ {[%emt 0:00:15]} Kg5 {[%emt 0:00:03]} 69. Qc5+ {[%emt 0:01:51]} Kf6 {[%emt 0:00:24]} 70. Qf2+ {[%emt 0:00:44]} Kg6 {[%emt 0:01:37]} 71. Qb6+ {[%emt 0:00:12]} Kf5 {[%emt 0:01:44]} 72. Qf2+ {[%emt 0:00:48]} Kg5 {[%emt 0:00:32]} 73. Qc5+ {[%emt 0:00:42]} Kf6 {[%emt 0:00:58]} 74. Qf2+ {[%emt 0:01:53]} Kg6 {[%emt 0:00:33]} 1/2-1/2